Cogmind - Beta 16 @@@ ROGUE MODE // 2025.11.10 @ 01:06:46 Player: szymekc Result: Destroyed by Y-72 Warden with Railgun Performance ------------- Evolutions (8) 4000 Regions Visited (19) 3800 Robots Destroyed (166) 830 Value Destroyed (4988) 4988 Prototype IDs (129) 2580 Alien Tech Used (3) 600 Bonus (4839) 4839 TOTAL SCORE: 21637 Bonus ------- High Alert Combat Kills 257 Follower Combat Kills 2780 Forged Quantum Companion 2000 Registered with UFD 300 Met Optimus in HQ 500 Met Zhirov 300 MAIN.C Attacked Warlord 500 Scanned by Researcher 500 Friendly Fire -2298 Cogmind --------- Core Integrity 0/1450 Matter 300/300 Energy 99/100 System Corruption 1% Temperature Cool (0) Movement Core (50) Location -2/Protoforge Parts ------- > --- POWER (2) -------- (None) > --- PROPULSION (8) --- (None) > --- UTILITY (11) ----- Advanced Signal Interpreter Improved Melee Analysis Suite Improved Melee Analysis Suite Improved Hacking Suite > --- WEAPON (2) ------- Superquantum Companion > --- INVENTORY (5) ---- Vortex Catalyst Activator (10) Core Stripper Peak State ------------ > --- POWER ------------ Vortex Chain Reactor > --- PROPULSION ------- Cooled Gravmag System Cooled Gravmag System Cooled Gravmag System Cooled Antigrav System Cooled Antigrav System Antigrav Array > --- UTILITY ---------- Large Storage Unit Advanced Signal Interpreter Advanced Melee Analysis Suite Core Analyzer Advanced Force Field Advanced Hacking Suite Advanced Hacking Suite Advanced Hacking Suite Improved System Shield A0-MCA's Component Scanner > --- WEAPON ----------- Nova Cannon Companion Sword > --- INVENTORY -------- Cooled Gravmag System Deep Structural Scanner Long-range Sensor Array Advanced Reaction Control System Experimental Utility Shielding Enhanced Scrap Shield Advanced Hacking Suite Advanced Hacking Suite Advanced Hacking Suite Amulet of Y3-NDR Vortex Catalyst Activator CPS Tube [Rating: 153] Favorites ----------- Power Light Fission Core Engine Subdweller Power Source Power Core Light Fission Core Reactor Light Antimatter Reactor Propulsion Spiked Treads Treads Spiked Treads Wheel Subdweller Monowheel Hover Unit Cooled Gravmag System Flight Unit Xenon Bombardment Thruster Utility Large Storage Unit Device Seismic Detector Storage Large Storage Unit Processor A0-MCA's Component Scanner Hackware Advanced Hacking Suite Protection Enhanced Scrap Shield Weapon Companion Sword Energy Gun Subdweller Laser Energy Cannon Subdweller Beam Cannon Ballistic Gun Light Assault Rifle Ballistic Cannon Improved Light Cannon Launcher Mini Grenade Launcher Special Weapon CPS Tube Impact Weapon Powered Hammer Slashing Weapon Companion Sword Build | -11 -10 -10 -7 -7 -5 -5 -5 -5 -4 -4 -4 -4 -4 -3 -3 -3 -2 -2 -2 ------- Run | Yrd Mat Sub Rec Scr Fac Upp Upp War Pro Fac Upp Upp Zhi Pro Res Tes Res Qua Frg Slots Evolved 16 | . . . . . 10 . . . . 2 . . . . 2 . 2 . . Power 1 | . . . . . . . . . . 1 . . . . . . . . . Propulsion 6 | . . . . . 3 . . . . 1 . . . . 1 . 1 . . Utility 9 | . . . . . 7 . . . . . . . . . 1 . 1 . . Weapon . | . . . . . . . . . . . . . . . . . . . . Parts Attached 167 | 7 13 12 3 6 52 3 4 4 2 13 . . 3 2 12 13 9 6 3 Power 29 | 1 2 1 . 1 9 . 1 1 1 5 . . . 2 . 1 4 . . Engine 7 | 1 2 1 . . 3 . . . . . . . . . . . . . . Core 9 | . . . . 1 6 . . . 1 1 . . . . . . . . . Reactor 13 | . . . . . . . 1 1 . 4 . . . 2 . 1 4 . . Propulsion 47 | 2 3 4 . 2 16 . . 2 . 2 . . 3 . 2 5 2 2 2 Treads 10 | 2 3 4 . 1 . . . . . . . . . . . . . . . Leg . | . . . . . . . . . . . . . . . . . . . . Wheel 1 | . . . . 1 . . . . . . . . . . . . . . . Hover 29 | . . . . . 11 . . 2 . 2 . . 3 . 2 4 2 1 2 Flight 7 | . . . . . 5 . . . . . . . . . . 1 . 1 . Utility 67 | 2 3 1 3 1 23 2 3 . . 6 . . . . 9 7 3 4 . Device 23 | 2 1 1 1 . 9 1 2 . . 1 . . . . 1 2 . 2 . Storage 5 | . 2 . 1 . . . . . . 1 . . . . . 1 . . . Processor 14 | . . . 1 1 4 . 1 . . 2 . . . . . 1 3 1 . Hackware 17 | . . . . . 5 . . . . 2 . . . . 7 2 . 1 . Protection 8 | . . . . . 5 1 . . . . . . . . 1 1 . . . Artifact . | . . . . . . . . . . . . . . . . . . . . Weapon 24 | 2 5 6 . 2 4 1 . 1 1 . . . . . 1 . . . 1 Energy Gun 2 | . . 1 . . . . . 1 . . . . . . . . . . . Energy Cannon 5 | . . 2 . . 2 . . . . . . . . . 1 . . . . Ballistic Gun 3 | 2 . . . . 1 . . . . . . . . . . . . . . Ballistic Cannon 5 | . 3 2 . . . . . . . . . . . . . . . . . Launcher 4 | . 1 1 . . 1 . . . 1 . . . . . . . . . . Special Weapon 2 | . 1 . . . . 1 . . . . . . . . . . . . . Impact Weapon 1 | . . . . 1 . . . . . . . . . . . . . . . Slashing Weapon 2 | . . . . 1 . . . . . . . . . . . . . . 1 Piercing Weapon . | . . . . . . . . . . . . . . . . . . . . Special Melee Weapon . | . . . . . . . . . . . . . . . . . . . . Unidentified Prototypes 5 | . . 1 . 1 . . . . . . . . 1 . 1 . . . 1 Corrupted Parts 1 | . . . . 1 . . . . . . . . . . . . . . . System Corruption 7 | . . . . 7 . . . . . . . . . . . . . . . Parts Lost 48 | . . . . . 11 . . . . . . . . . 12 7 3 12 3 Power 8 | . . . . . 4 . . . . . . . . . 1 . 1 2 . Propulsion 19 | . . . . . 2 . . . . . . . . . 8 1 1 5 2 Utility 21 | . . . . . 5 . . . . . . . . . 3 6 1 5 1 Weapon . | . . . . . . . . . . . . . . . . . . . . Highest Loss Streak 12 | . . . . . 3 . . . . . . . . . 11 4 2 12 3 To Critical Strikes 1 | . . . . . . . . . . . . . . . 1 . . . . Average Backups 13 | . 10 14 14 18 11 13 14 13 11 11 11 12 12 13 12 3 2 4 2 Power . | . . . 1 . . . . . 1 1 1 1 1 . . . . . . Propulsion 3 | . 2 5 5 6 1 5 5 4 2 . . . . 1 1 . . . . Utility 4 | . 1 2 3 5 4 4 5 6 5 7 7 7 8 8 7 1 . . . Weapon 3 | . 5 4 4 4 2 1 1 1 1 2 2 2 1 1 2 1 2 2 2 Tool/Special . | . . . . . . . . . . . . . . . . . . . . Unused Backups 41 | 1 1 5 . 4 14 1 . 1 . 1 1 2 1 . 5 . . 2 2 Power 4 | . 1 . . 1 2 . . . . . . . . . . . . . . Propulsion 6 | . . . . . 3 . . . . 1 . 1 . . 1 . . . . Utility 12 | 1 . 1 . . 3 1 . 1 . . 1 1 . . 2 . . 1 . Weapon 17 | . . 4 . 3 5 . . . . . . . 1 . 1 . . 1 2 Tool/Special 2 | . . . . . 1 . . . . . . . . . 1 . . . . Average Slot Usage (%) 91 | . 100 100 100 92 90 88 87 89 93 87 89 89 89 88 81 39 58 61 29 Engine 5 | . 14 14 14 2 . 5 4 . . . . . . . . . . . . Core 3 | . . . . 11 4 . . . 2 5 . . . . . . . . . Reactor 1 | . . . . . . . . 5 2 3 10 10 10 9 3 . 7 5 . Treads 17 | . 28 28 28 26 . . . . . . . . . . . . . . . Hover 9 | . . . . . 25 29 29 29 29 31 31 31 31 31 28 2 17 12 4 Device 9 | . 18 14 14 2 8 11 11 17 17 8 10 10 10 10 7 3 . 1 . Storage 9 | . 9 14 14 14 4 5 5 5 5 5 5 5 5 5 3 . 4 3 . Processor 7 | . . . . 4 17 11 11 17 17 18 21 21 21 21 18 15 15 23 13 Hackware 2 | . . . . . 13 11 9 . . 3 . . . . 7 8 9 8 7 Protection 1 | . . . . . 2 5 5 5 5 5 5 5 5 5 4 2 . . . Energy Gun 4 | . . 7 14 8 . . . . . . . . . . . . . . . Energy Cannon 4 | . . 13 14 6 . . . . . . . . . . . . . . . Ballistic Cannon 4 | . 26 3 . . . . . . . . . . . . . . . . . Impact Weapon 2 | . . . . 7 . . . . . . . . . . . . . . . Slashing Weapon 3 | . . . . 5 5 5 5 5 5 5 5 5 5 5 4 4 4 4 4 Peak Build Rating 153 | 9 11 17 18 36 102 97 99 114 116 126 125 125 127 132 153 121 132 148 54 Average Rating 49 | 6 10 15 15 25 87 94 96 104 113 122 124 125 125 128 139 53 120 106 47 On Entrance 77 | . 9 11 17 17 36 97 95 99 114 110 125 125 125 127 132 39 100 132 35 Avg Prop Armor Cover (%) 5 | . . . . 17 2 . . . . 2 . . . . 4 5 . 2 . Naked Turns . | . . . . . . . . . . . . . . . . . . . . Heaviest Build 100 | 7 34 42 98 100 65 55 55 63 57 65 65 65 65 76 86 42 58 61 4 Greatest Support 115 | 40 40 40 40 48 71 69 56 58 83 96 66 66 68 68 115 84 112 112 24 Greatest Overweight (x) 4 | . 1 1 2 4 1 . . 1 . . . . . 1 1 2 . 1 1 Average Overweight (x) . | . . . . 1 . . . . . . . . . . . . . . . Largest Inventory Capacity 25 | 5 15 15 25 25 25 15 15 15 15 15 15 15 15 15 15 15 15 15 5 Average Capacity 16 | 5 12 15 16 25 14 15 15 15 15 15 15 15 15 15 14 5 15 12 5 Most Carried 25 | 3 15 15 16 25 23 15 15 15 15 15 15 15 15 15 15 7 6 9 5 Average Carried 15 | . 10 14 15 20 14 14 14 14 14 14 14 15 14 14 14 4 4 6 4 Final Capacity 25 | 5 15 15 25 25 15 15 15 15 15 15 15 15 15 15 5 15 15 5 5 Final Carried 24 | 3 15 15 16 24 14 15 15 15 15 15 15 15 15 15 5 7 5 5 4 Class Distribution -------------------- 71% | Mutant 17% | Hacker-Mutant 8% | Sprinter Dominant Class ---------------- Mutant | -10/Materials Mutant | -10/Subcaves Mutant | -7/Recycling Mutant | -7/Scraptown Hacker-Mutant | -5/Factory Hacker-Mutant | -5/Upper Caves Hacker-Mutant | -5/Upper Caves Mutant | -5/Warlord Mutant | -4/Proximity Caves Sprinter | -4/Factory Sprinter | -4/Upper Caves Sprinter | -4/Upper Caves Sprinter | -4/Zhirov Sprinter | -3/Proximity Caves Sprinter | -3/Research Hacker-Mutant | -3/Testing Hacker-Mutant | -2/Research Hacker-Mutant | -2/Quarantine Hacker-Mutant | -2/Protoforge Resources | -11 -10 -10 -7 -7 -5 -5 -5 -5 -4 -4 -4 -4 -4 -3 -3 -3 -2 -2 -2 ----------- Run | Yrd Mat Sub Rec Scr Fac Upp Upp War Pro Fac Upp Upp Zhi Pro Res Tes Res Qua Frg Matter Collected 3694 | 272 470 377 77 88 1011 87 131 137 54 150 34 34 50 130 325 47 . 154 66 Remotely . | . . . . . . . . . . . . . . . . . . . . Salvage Created 8559 | 196 395 304 75 126 3183 301 127 . 181 950 280 597 126 153 633 301 273 194 164 Parts 421 | 12 50 21 . 6 132 8 10 . 7 49 16 16 1 13 31 19 8 11 11 Haulers Intercepted 10 | . 2 . . . 2 . . . . 2 . 1 . . . 1 1 1 . Recyclers Shooed 2 | . . . . . 2 . . . . . . . . . . . . . . Parts Field Recycled . | . . . . . . . . . . . . . . . . . . . . Retrieved Matter . | . . . . . . . . . . . . . . . . . . . . Parts Self-Destructed 91 | . . 13 . . . 29 1 . 1 . 5 18 1 23 . . . . . Prevented 55 | . . . . . . 1 4 . 22 . 12 8 . 8 . . . . . Parts Restored . | . . . . . . . . . . . . . . . . . . . . Kills | -11 -10 -10 -7 -7 -5 -5 -5 -5 -4 -4 -4 -4 -4 -3 -3 -3 -2 -2 -2 ------- Run | Yrd Mat Sub Rec Scr Fac Upp Upp War Pro Fac Upp Upp Zhi Pro Res Tes Res Qua Frg Combat Hostiles Destroyed 86 | . 18 9 . . 29 4 . . 3 9 2 1 . 3 2 2 2 . 2 Melee 49 | . 2 . . . 18 4 . . 2 9 2 1 . 3 2 2 2 . 2 Cannons 13 | . 10 3 . . . . . . . . . . . . . . . . . AOE 24 | . 6 6 . . 11 . . . 1 . . . . . . . . . . Classes Destroyed 20 | 3 5 2 . 1 6 . . . 2 . . . . . . . . 1 . Worker 16 | 1 6 . . . 7 . . . . . . . . . 2 . . . . Builder 10 | . 4 . . . 5 . . . . . . . . . 1 . . . . Tunneler 6 | 5 . . . . 1 . . . . . . . . . . . . . . Hauler 10 | . 2 . . . 2 . . . . 2 . 1 . . . 1 1 1 . Recycler 18 | 1 2 . 1 . 11 . . . . 1 . . . . 2 . . . . Mechanic 1 | . . . . . 1 . . . . . . . . . . . . . . Operator 6 | . . . . . 2 . . . . . . . . . 1 2 . 1 . Drone 2 | . . . . . 1 . . . . . . . . 1 . . . . . Watcher 7 | . 3 . . . 2 . . . . . . . . . 2 . . . . Swarmer 26 | . 12 4 . . 7 3 . . . . . . . . . . . . . Cutter 4 | . . . . . 4 . . . . . . . . . . . . . . Grunt 22 | . 6 . . . 6 1 . . . 4 2 . . . . 1 2 . . Protector 1 | . . . . . . . . . 1 . . . . . . . . . . Researcher 1 | . . . . . . . . . . . . . . . . . . 1 . Sentry 4 | . . . . . . . . . 1 1 . . . . 1 . . . 1 Hunter 6 | . . . . . 3 . . . 1 . . 1 . 1 . . . . . Programmer 16 | . . . . . 8 . . . . 4 . . . 1 1 1 . . 1 Artisan 1 | . . 1 . . . . . . . . . . . . . . . . . Subdweller 6 | . . 5 . 1 . . . . . . . . . . . . . . . Scientist 3 | . . . . 3 . . . . . . . . . . . . . . . Wizard 4 | . . . . . . . 1 . . . 2 1 . . . . . . . Commander 1 | . . . . . . . 1 . . . . . . . . . . . . Best Kill Streak 9 | 2 6 4 1 . 9 2 . . 1 3 2 2 . 2 2 2 2 1 1 Combat Bots Only 7 | . 6 4 . . 7 2 . . 1 2 2 1 . 2 1 1 2 . 1 Max Kills in Single Turn 6 | 1 2 3 1 1 6 1 1 . 1 1 1 1 . 1 1 1 1 1 1 Gunslinging . | . . . . . . . . . . . . . . . . . . . . Exploded 6 | . 2 3 . . 6 . . . 1 . . . . . . . . . . Melee 2 | . 1 . . . 2 1 . . 1 1 1 1 . 1 1 1 1 . 1 Uniques/NPCs Destroyed . | . . . . . . . . . . . . . . . . . . . . Combat | -11 -10 -10 -7 -7 -5 -5 -5 -5 -4 -4 -4 -4 -4 -3 -3 -3 -2 -2 -2 -------- Run | Yrd Mat Sub Rec Scr Fac Upp Upp War Pro Fac Upp Upp Zhi Pro Res Tes Res Qua Frg Hostile Shots Fired 1129 | . 90 24 . . 371 13 . 3 18 35 26 2 . 2 208 106 69 128 34 Missed 427 | . 28 9 . . 136 6 . 2 10 16 8 1 . . 81 45 24 49 12 Deflected 2 | . . . . . . . . . . . . . . . . . . . 2 Hits 702 | . 62 15 . . 235 7 . 1 8 19 18 1 . 2 127 61 45 79 22 Melee 1 | . . . . . 1 . . . . . . . . . . . . . . Projectile 701 | . 62 15 . . 234 7 . 1 8 19 18 1 . 2 127 61 45 79 22 AOE 8 | . . . . . . . . 4 3 1 . . . . . . . . . Critical Strikes 27 | . . . . . 10 . . . . . . . . . 8 6 1 2 . Actively Blocked 7 | . . . . . 7 . . . . . . . . . . . . . . Part Disruptions 4 | . . . . . 1 . 1 . . . . . . . 2 . . . . Damage Taken 14132 | . 686 290 . . 4370 133 94 88 291 807 410 8 . 102 2349 1196 952 1867 489 Core 3308 | . 112 43 . . 497 8 . . 27 49 19 8 . . 699 426 248 835 337 Absorbed by Shields 483 | . . . . . . . . . 16 . . . . . 467 . . . . Redirected to Shielding 152 | . . . . . . . . . . . . . . . 78 74 . . . Regen/Repaired (Parts) 890 | . . . . . 739 . . 151 . . . . . . . . . . . Core Remaining (%) 49 | 100 . . . 38 . . . . 13 . . . . 93 . 5 . . . Volleys Fired 149 | 25 49 54 . . 15 1 . 1 2 . . . . . 2 . . . . Largest 2 | 2 2 2 . . 1 1 . 1 1 . . . . . 1 . . . . Hottest 160 | 40 100 160 . . 69 . . 40 46 . . . . . 113 . . . . Shots Fired 219 | 50 90 58 . . 15 1 . 1 2 . . . . . 2 . . . . Gun 74 | 50 . 17 . . 6 . . 1 . . . . . . . . . . . Cannon 109 | . 81 23 . . 3 . . . . . . . . . 2 . . . . Launcher 22 | . 8 6 . . 6 . . . 2 . . . . . . . . . . Special 14 | . 1 12 . . . 1 . . . . . . . . . . . . . Kinetic 137 | 50 81 . . . 6 . . . . . . . . . . . . . . Thermal 57 | . 1 52 . . 2 . . . . . . . . . 2 . . . . Explosive 20 | . 8 6 . . 6 . . . . . . . . . . . . . . Electromagnetic 3 | . . . . . 1 . . . 2 . . . . . . . . . . Entropic 1 | . . . . . . . . 1 . . . . . . . . . . . Robot Hit Streak 19 | 6 7 12 . . 18 19 . . . . . . . . . . . . . Robot Miss Streak 5 | 2 5 1 . . . . . . . . . . . . . . . . . Penetration Max . | . . . . . . . . . . . . . . . . . . . . Secondary Targets . | . . . . . . . . . . . . . . . . . . . . Autonomous 1 | . . . . . . . . . . . . . . . . . . . 1 Shots Hit Robots 364 | 31 45 16 . 4 93 13 9 1 10 23 10 11 8 7 31 20 17 12 3 Core Hits 220 | 15 37 10 . 1 83 7 3 1 4 13 4 6 1 4 10 7 7 4 3 Critical Kills 1 | . . . . 1 . . . . . . . . . . . . . . . Critical Parts Destroyed 2 | . . . . 1 1 . . . . . . . . . . . . . . Critical Strikes 9 | . 1 . . 2 4 . . . . . . . . . . . 2 . . Destroy 2 | . . . . . 2 . . . . . . . . . . . . . . Blast 1 | . 1 . . . . . . . . . . . . . . . . . . Smash 2 | . . . . 2 . . . . . . . . . . . . . . . Melee Attacks 475 | . . . . 5 172 22 12 2 14 39 17 17 10 9 59 41 27 19 10 Impact 5 | . . . . 5 . . . . . . . . . . . . . . . Slashing 470 | . . . . . 172 22 12 2 14 39 17 17 10 9 59 41 27 19 10 Piercing . | . . . . . . . . . . . . . . . . . . . . Sneak Attacks 73 | . . . . 4 29 . 8 . 3 7 5 2 . 1 8 2 1 3 . Combat Hostiles 5 | . . . . . . . . . . 3 . . . 1 . . . 1 . Follow-up Attacks 4 | . . . . . 1 . . . . 2 . . . . . . 1 . . Damage Inflicted 21165 | 251 1907 769 15 419 6963 625 710 59 635 1381 694 854 647 401 2120 911 714 768 322 Guns 292 | 250 . 19 . . 23 . . . . . . . . . . . . . . Cannons 1338 | . 955 310 . . . . . . . . . . . . . . . . 73 Explosions 3101 | . 738 440 . . 1873 . . . 50 . . . . . . . . . . Melee 15937 | . . . . 419 5067 625 710 59 585 1381 694 854 647 401 1853 911 714 768 249 Ramming 497 | 1 214 . 15 . . . . . . . . . . . 267 . . . . Kinetic 1228 | 250 955 . . . 23 . . . . . . . . . . . . . . Thermal 408 | . . 329 . . 79 . . . . . . . . . . . . . . Explosive 2705 | . 738 440 . . 1527 . . . . . . . . . . . . . . Electromagnetic 317 | . . . . . 267 . . . 50 . . . . . . . . . . Impact 419 | . . . . 419 . . . . . . . . . . . . . . . Slashing 15518 | . . . . . 5067 625 710 59 585 1381 694 854 647 401 1853 911 714 768 249 Piercing . | . . . . . . . . . . . . . . . . . . . . Phasic 73 | . . . . . . . . . . . . . . . . . . . 73 Highest Corruption 20 | . 1 1 1 7 20 20 20 20 . 2 3 3 3 3 8 12 . 1 1 Average Corruption 5 | . 1 1 1 7 8 20 20 20 . 1 2 3 3 3 3 8 . 1 1 Corruption Purged 1 | . . . 1 . . . . . . . . . . . . . . . . Corruption Blocked . | . . . . . . . . . . . . . . . . . . . . Effects 201 | . 5 27 5 5 66 29 22 . . . 6 10 1 7 7 11 . . . Message Errors 52 | . 1 8 1 2 17 8 5 . . . . 2 . 4 2 2 . . . Matter Fused 63 | . . 9 2 1 22 8 8 . . . 2 5 . 1 3 2 . . . Heat Flow Errors 17 | . 2 3 1 1 4 2 1 . . . 1 . . . . 2 . . . Energy Discharges 23 | . . 1 1 1 5 3 6 . . . 1 . . 2 . 3 . . . Parts Rejected 1 | . . . . . . . . . . . . . . . . 1 . . . Parts Fused 3 | . . 1 . . 1 1 . . . . . . . . . . . . . Data Loss (minor) 16 | . . 3 . . 3 4 1 . . . 2 2 . . . 1 . . . Data Loss (major) 9 | . . . . . 5 1 . . . . . 1 . . 2 . . . . Misfires 1 | . 1 . . . . . . . . . . . . . . . . . . Alerts 8 | . 1 2 . . 3 . 1 . . . . . 1 . . . . . . Misdirections 8 | . . . . . 6 2 . . . . . . . . . . . . . Overload Shots . | . . . . . . . . . . . . . . . . . . . . Overflow Damage 2426 | . 61 29 1 250 807 83 46 . 40 63 287 182 39 . 354 102 . 64 18 Projectiles 94 | . 22 24 . 48 . . . . . . . . . . . . . . . Explosions 51 | . 38 5 . . 8 . . . . . . . . . . . . . . Melee 2281 | . 1 . 1 202 799 83 46 . 40 63 287 182 39 . 354 102 . 64 18 Knockbacks 22 | . 17 . . 4 . . . . . . . . . . 1 . . . . Impact 4 | . 1 . . 2 . . . . . . . . . . 1 . . . . Kinetic 16 | . 16 . . . . . . . . . . . . . . . . . . Secondary 2 | . . . . 2 . . . . . . . . . . . . . . . Self-Inflicted Damage 303 | . 38 . . . 134 . . . . . . . . . 131 . . . . Shots 4 | . 1 . . . 3 . . . . . . . . . . . . . . Rammed 46 | 1 35 . . . . . . . . . . . . . 10 . . . . Targets Rammed 54 | 1 42 . 1 . . . . . . . . . . . 10 . . . . Kicked . | . . . . . . . . . . . . . . . . . . . . Crushed 8 | . 7 . 1 . . . . . . . . . . . . . . . . Highest Temperature 275 | . 201 197 97 166 228 214 275 . . . 268 . . . 48 173 19 . . Average Temperature 59 | . 42 83 49 89 54 98 143 . . . 143 . . . 23 82 7 . . Received Heat Transfer 1502 | . 243 72 . . 306 36 . . 9 99 30 . . 12 173 198 126 117 81 Siege Activations . | . . . . . . . . . . . . . . . . . . . . Martial Activations . | . . . . . . . . . . . . . . . . . . . . Shielding Activations . | . . . . . . . . . . . . . . . . . . . . Robots Disrupted 3 | . . . . . 3 . . . . . . . . . . . . . . Combat Hostiles 3 | . . . . . 3 . . . . . . . . . . . . . . Robots Corrupted 4 | . 1 . . 3 . . . . . . . . . . . . . . . Combat Hostiles . | . . . . . . . . . . . . . . . . . . . . Parts Fried 5 | . . . . 3 1 . . . . 1 . . . . . . . . . Impact Corruptions 7 | . 1 . 1 5 . . . . . . . . . . . . . . . Robots Melted . | . . . . . . . . . . . . . . . . . . . . Combat Hostiles . | . . . . . . . . . . . . . . . . . . . . Parts Melted 1 | . . 1 . . . . . . . . . . . . . . . . . Heat Transferred 482 | . . 432 . . 50 . . . . . . . . . . . . . . Parts Sabotaged . | . . . . . . . . . . . . . . . . . . . . Parts Stolen . | . . . . . . . . . . . . . . . . . . . . Parts Stripped . | . . . . . . . . . . . . . . . . . . . . Power Chain Reactions . | . . . . . . . . . . . . . . . . . . . . Alert | -11 -10 -10 -7 -7 -5 -5 -5 -5 -4 -4 -4 -4 -4 -3 -3 -3 -2 -2 -2 ------- Run | Yrd Mat Sub Rec Scr Fac Upp Upp War Pro Fac Upp Upp Zhi Pro Res Tes Res Qua Frg Maximum Alert Level 3 | . . . . . 3 . . . . 3 . . . . 1 . . . . Low Security (%) 82 | 100 100 . 100 . 70 . . . . 42 . . . . 5 100 100 100 100 Level 1 11 | . . . . . 18 . . . . 9 . . . . 94 . . . . Level 2 4 | . . . . . 9 . . . . 27 . . . . . . . . . Level 3 1 | . . . . . 2 . . . . 20 . . . . . . . . . Level 4 . | . . . . . . . . . . . . . . . . . . . . Level 5 . | . . . . . . . . . . . . . . . . . . . . High Security . | . . . . . . . . . . . . . . . . . . . . Max Security . | . . . . . . . . . . . . . . . . . . . . Peak Influence 1099 | 10 151 . 146 . 818 . . . . 1099 . . . . 347 100 130 175 98 Initial 257 | . . . 14 . . . . . . 22 . . . . 257 98 . 72 78 Average 123 | 1 69 . 86 . 159 . . . . 376 . . . . 269 49 43 65 81 Influence Increases 7888 | 35 707 155 403 . 2088 161 102 171 252 1508 213 294 6 359 566 249 182 341 96 Destroy 0b10 Robot/C 2860 | . 360 80 80 . 700 120 60 60 100 520 140 220 . 240 40 40 40 20 40 Destroy 0b10 Robot/NC 475 | 35 85 . 10 . 160 5 . 5 15 55 . 20 5 10 40 15 5 10 . Destroy Leader 476 | . 80 . . . 118 10 10 . 10 148 30 . . 30 14 2 2 2 20 Allied During Kill 554 | . . . 47 . 41 11 32 16 22 223 28 54 1 79 . . . . . Trap Triggered on 0b10 10 | . . . . . 10 . . . . . . . . . . . . . . Successful Hack 375 | . 23 . 56 . 153 . . . . 45 . . . . 32 63 . 3 . Select Force Hacks 240 | . 30 . 210 . . . . . . . . . . . . . . . . Disable Machine 285 | . 45 . . . 165 . . . . 15 . . . . . 15 . 45 . Anti-Garrison Action 150 | . . . . . . . . . . 150 . . . . . . . . . Destroy Structure 543 | . 69 . . . 216 . . . . 142 . . . . 50 24 15 6 21 Advance Influence 150 | . . . . . . . . . . . . . . . 150 . . . . Partial Spotted 435 | . 15 . . . 225 . . . . 120 . . . . 30 30 . 15 . Lose Combat Pursuer 1335 | . . 75 . . 300 15 . 90 105 90 15 . . . 210 60 120 240 15 Influence Decreases 7804 | 35 594 238 433 . 1272 645 294 275 252 447 717 472 421 200 550 424 53 330 152 Entered New Map 1812 | . . 55 16 . . 303 64 140 36 14 407 114 415 . 52 77 . 57 62 Time Decay 4044 | 35 594 183 377 . 599 302 230 75 158 253 190 238 6 140 278 198 43 85 60 Search Patrol Dispatched 100 | . . . . . . . . . . . . . . . 100 . . . . Lost Part 416 | . . . . . 110 . . . . . . . . . 120 63 10 83 30 Lost Ally 762 | . . . 40 . 84 40 . 60 58 180 120 120 . 60 . . . . . Purge Threat 670 | . . . . . 479 . . . . . . . . . . 86 . 105 . Squads Dispatched 51 | . 1 . . . 21 . . . . 10 . . . . 7 3 3 5 1 Investigation 23 | . 1 . . . 11 . . . . 5 . . . . 4 . . 2 . Extermination 10 | . . . . . 5 . . . . 2 . . . . 1 1 . 1 . Reinforcement 14 | . . . . . 5 . . . . . . . . . 2 2 2 2 1 Assault 2 | . . . . . . . . . . 2 . . . . . . . . . Garrison 2 | . . . . . . . . . . 1 . . . . . . 1 . . Intercept . | . . . . . . . . . . . . . . . . . . . . Searches Triggered 1 | . . . . . . . . . . . . . . . 1 . . . . Construction Impeded 1 | . . . . . . . . . . . . . . . 1 . . . . Haulers Reinforced 5 | . . . . . 3 . . . . . . . . . . 1 1 . . Active Scanning Responses . | . . . . . . . . . . . . . . . . . . . . Cargo Convoy Interrupts 1 | . . . . . . . . . . . . . . . 1 . . . . Stealth | -11 -10 -10 -7 -7 -5 -5 -5 -5 -4 -4 -4 -4 -4 -3 -3 -3 -2 -2 -2 --------- Run | Yrd Mat Sub Rec Scr Fac Upp Upp War Pro Fac Upp Upp Zhi Pro Res Tes Res Qua Frg Distress Signals 34 | . . . . . 7 . . 2 13 2 . . . 1 2 3 . 2 2 Communications Jammed 28 | . . . . . 28 . . . . . . . . . . . . . . Distress Signals 28 | . . . . . 28 . . . . . . . . . . . . . . Times Spotted 400 | . 30 17 2 . 112 21 3 25 21 33 8 4 . 8 49 15 12 28 12 Peak Tracking Total 28 | . 3 6 . . 12 5 2 14 4 6 4 5 . 3 28 5 9 23 12 Tactical Retreats 58 | . . 2 . . 25 1 . 3 4 2 1 . . . 9 5 2 3 1 ECM-based Alert Blocks 45 | . . . . . 44 . . . . . . . . . . 1 . . . Traps | -11 -10 -10 -7 -7 -5 -5 -5 -5 -4 -4 -4 -4 -4 -3 -3 -3 -2 -2 -2 ------- Run | Yrd Mat Sub Rec Scr Fac Upp Upp War Pro Fac Upp Upp Zhi Pro Res Tes Res Qua Frg Traps Triggered 18 | . 2 1 . . 5 . 1 . 1 3 . . . . 2 1 . 1 1 Indirectly . | . . . . . . . . . . . . . . . . . . . . Trap Hack Attempts . | . . . . . . . . . . . . . . . . . . . . Triggered . | . . . . . . . . . . . . . . . . . . . . Disarmed . | . . . . . . . . . . . . . . . . . . . . Reprogrammed 12 | . . . . . 12 . . . . . . . . . . . . . . Reused 1 | . . . . . 1 . . . . . . . . . . . . . . Traps Extracted . | . . . . . . . . . . . . . . . . . . . . Installed . | . . . . . . . . . . . . . . . . . . . . Triggered 1 | . . . . . 1 . . . . . . . . . . . . . . Machines | -11 -10 -10 -7 -7 -5 -5 -5 -5 -4 -4 -4 -4 -4 -3 -3 -3 -2 -2 -2 ---------- Run | Yrd Mat Sub Rec Scr Fac Upp Upp War Pro Fac Upp Upp Zhi Pro Res Tes Res Qua Frg Machines Disabled 27 | . 3 1 . . 11 . . 4 2 2 . . . . . 1 . 3 . Max in Single Turn 6 | . 1 1 . . 6 . . 1 1 1 . . . . . 1 . 1 . Garrison Access 6 | . . . . . 3 . . . . 3 . . . . . . . . . Machines Repaired . | . . . . . . . . . . . . . . . . . . . . Machines Dismantled . | . . . . . . . . . . . . . . . . . . . . Machines Sabotaged . | . . . . . . . . . . . . . . . . . . . . Overloaded Fab Kills . | . . . . . . . . . . . . . . . . . . . . Hacking | -11 -10 -10 -7 -7 -5 -5 -5 -5 -4 -4 -4 -4 -4 -3 -3 -3 -2 -2 -2 --------- Run | Yrd Mat Sub Rec Scr Fac Upp Upp War Pro Fac Upp Upp Zhi Pro Res Tes Res Qua Frg Machines Accessed 109 | . 8 2 13 3 31 2 2 3 . 17 2 . 4 . 9 8 . 5 . Terminals 48 | . 7 . 6 . 13 1 . . . 7 . . . . 4 6 . 4 . Fabricators 4 | . . . . . 3 . . . . 1 . . . . . . . . . Repair Stations 7 | . . . . . 5 . . . . 2 . . . . . . . . . Recycling Units 20 | . 1 . 7 . 5 . . . . 4 . . . . 3 . . . . Scanalyzers 4 | . . . . . 1 . . . . . . . . . 1 1 . 1 . Garrison Access 9 | . . . . . 4 . . . . 3 . . . . 1 1 . . . Total Hacks 318 | . 24 5 25 4 115 7 4 10 . 40 2 . 17 . 28 23 . 14 . Successful 196 | . 13 5 18 4 78 7 4 10 . 16 2 . 17 . 12 6 . 4 . Failed 122 | . 11 . 7 . 37 . . . . 24 . . . . 16 17 . 10 . Catastrophic 21 | . . . 1 . 4 . . . . 4 . . . . 2 7 . 3 . Database Lockouts . | . . . . . . . . . . . . . . . . . . . . Manual 96 | . 12 . 17 . 30 . . . . 17 . . . . 15 3 . 2 . Terminals 169 | . 23 . 15 . 56 6 . . . 25 . . . . 14 18 . 12 . Fabricators 12 | . . . . . 11 . . . . 1 . . . . . . . . . Repair Stations 27 | . . . . . 22 . . . . 5 . . . . . . . . . Recycling Units 30 | . 1 . 10 . 7 . . . . 4 . . . . 8 . . . . Scanalyzers 22 | . . . . . 12 . . . . . . . . . 4 4 . 2 . Garrison Access 15 | . . . . . 7 . . . . 5 . . . . 2 1 . . . Terminal Hacks 104 | . 7 5 3 4 24 7 4 10 . 7 2 . 17 . 6 5 . 3 . Record 26 | . . 4 . 3 . 6 3 5 . . . . 5 . . . . . . Part Schematic 6 | . . . . . 1 . . . . . . . 4 . 1 . . . . Robot Analysis 8 | . 3 . . . 1 . . . . . . . 4 . . . . . . Prototype ID Bank 21 | . 4 . 1 . 4 . . 4 . 1 . . 4 . 1 1 . 1 . Open Door 6 | . . . . 1 . 1 1 1 . . 2 . . . . . . . . Branch Access Points 3 | . . . 1 . 1 . . . . 1 . . . . . . . . . Emergency Access Points 4 | . . . . . 2 . . . . 1 . . . . . 1 . . . Machine Index 1 | . . . . . 1 . . . . . . . . . . . . . . Terminal Index 2 | . . . . . . . . . . 1 . . . . 1 . . . . Fabricator Index 1 | . . . . . . . . . . . . . . . 1 . . . . Alert Level 1 | . . . . . . . . . . 1 . . . . . . . . . Unreport Threat 7 | . . . . . 4 . . . . . . . . . . 1 . 2 . Locate Traps 2 | . . . . . . . . . . . . . . . 1 1 . . . Reprogram Traps 2 | . . . . . 2 . . . . . . . . . . . . . . Extermination Status 1 | . . . . . 1 . . . . . . . . . . . . . . Recall Extermination 1 | . . . . . 1 . . . . . . . . . . . . . . Hauler Manifests 4 | . . . . . 2 . . . . 1 . . . . 1 . . . . Registered Components 2 | . . . 1 . 1 . . . . . . . . . . . . . . Registered Prototypes 2 | . . . . . 1 . . . . 1 . . . . . . . . . Zone Layout 3 | . . . . . 2 . . . . . . . . . . 1 . . . Proto ID Catalog 1 | . . 1 . . . . . . . . . . . . . . . . . Fabricator Hacks 6 | . . . . . 6 . . . . . . . . . . . . . . Load Schematic 4 | . . . . . 4 . . . . . . . . . . . . . . Build 2 | . . . . . 2 . . . . . . . . . . . . . . Repair Station Hacks 18 | . . . . . 17 . . . . 1 . . . . . . . . . Scan Component 10 | . . . . . 9 . . . . 1 . . . . . . . . . Repair 8 | . . . . . 8 . . . . . . . . . . . . . . Recycling Unit Hacks 4 | . . . 3 . . . . . . . . . . . 1 . . . . Retrieve Components 4 | . . . 3 . . . . . . . . . . . 1 . . . . Scanalyzer 12 | . . . . . 8 . . . . . . . . . 2 1 . 1 . Insert Component 5 | . . . . . 3 . . . . . . . . . 1 . . 1 . Analyze 5 | . . . . . 5 . . . . . . . . . . . . . . Retrieve Study 2 | . . . . . . . . . . . . . . . 1 1 . . . Garrison Access Hacks 5 | . . . . . 3 . . . . 2 . . . . . . . . . Seal Access 5 | . . . . . 3 . . . . 2 . . . . . . . . . Unauthorized Hacks 47 | . 6 . 12 . 20 . . . . 6 . . . . 3 . . . . Terminals 20 | . 5 . 5 . 9 . . . . 1 . . . . . . . . . Botnet 4 | . . . 1 . 2 . . . . 1 . . . . . . . . . Operators 1 | . . . . . 1 . . . . . . . . . . . . . . Skim 15 | . 5 . 4 . 6 . . . . . . . . . . . . . . Fabricators 4 | . . . . . 3 . . . . 1 . . . . . . . . . Prioritize 2 | . . . . . 2 . . . . . . . . . . . . . . Liberate 1 | . . . . . . . . . . 1 . . . . . . . . . Recompile 1 | . . . . . 1 . . . . . . . . . . . . . . Repair Stations 3 | . . . . . 3 . . . . . . . . . . . . . . Patch 3 | . . . . . 3 . . . . . . . . . . . . . . Recycling Units 20 | . 1 . 7 . 5 . . . . 4 . . . . 3 . . . . Tunnel 8 | . 1 . 7 . . . . . . . . . . . . . . . . Fedlink 12 | . . . . . 5 . . . . 4 . . . . 3 . . . . Scanalyzers . | . . . . . . . . . . . . . . . . . . . . Garrison Access . | . . . . . . . . . . . . . . . . . . . . Data Cores Recovered 2 | . . . . . 1 . . . . . . . . . 1 . . . . Used 1 | . . . . . 1 . . . . . . . . . . . . . . Hacking Detections 70 | . 7 . 8 . 22 1 . . . 11 . . . . 8 8 . 5 . Full Trace Events 4 | . . . . . 2 . . . . . . . . . . . . 2 . Feedback Events . | . . . . . . . . . . . . . . . . . . . . Feedback Blocked . | . . . . . . . . . . . . . . . . . . . . Robot Schematics Acquired . | . . . . . . . . . . . . . . . . . . . . Robots Built . | . . . . . . . . . . . . . . . . . . . . Authchips . | . . . . . . . . . . . . . . . . . . . . Time . | . . . . . . . . . . . . . . . . . . . . Total Robot Build Rating . | . . . . . . . . . . . . . . . . . . . . Part Schematics Acquired 36 | . . . . 11 18 . . . . . . . 4 . 1 . . 2 . Parts Built 2 | . . . . . 2 . . . . . . . . . . . . . . Authchips . | . . . . . . . . . . . . . . . . . . . . Time 70 | . . . . . 70 . . . . . . . . . . . . . . Total Part Build Rating 10 | . . . . . 10 . . . . . . . . . . . . . . Part Studies Acquired 2 | . . . . . . . . . . . . . . . 1 1 . . . Parts Repaired 8 | . . . . . 8 . . . . . . . . . . . . . . Time 564 | . . . . . 564 . . . . . . . . . . . . . . Parts Recycled . | . . . . . . . . . . . . . . . . . . . . Recycled Matter . | . . . . . . . . . . . . . . . . . . . . Retrieved Matter . | . . . . . . . . . . . . . . . . . . . . Retrieved Components 9 | . . . 6 . . . . . . . . . . . 3 . . . . Parts Scanalyzed 4 | . . . . . 3 . . . . . . . . . 1 . . . . Part Schematics Acquired 3 | . . . . . 3 . . . . . . . . . . . . . . Parts Damaged 2 | . . . . . 1 . . . . . . . . . 1 . . . . Bothacking | -11 -10 -10 -7 -7 -5 -5 -5 -5 -4 -4 -4 -4 -4 -3 -3 -3 -2 -2 -2 ------------ Run | Yrd Mat Sub Rec Scr Fac Upp Upp War Pro Fac Upp Upp Zhi Pro Res Tes Res Qua Frg Used RIF Installer . | . . . . . . . . . . . . . . . . . . . . Robots Hacked . | . . . . . . . . . . . . . . . . . . . . Non-combat . | . . . . . . . . . . . . . . . . . . . . Combat . | . . . . . . . . . . . . . . . . . . . . Robot Hacks Applied . | . . . . . . . . . . . . . . . . . . . . Relay Couplers Released 1 | . . . . . . . . . . 1 . . . . . . . . . Machine Destruction 1 | . . . . . . . . . . 1 . . . . . . . . . Fabnet Peak Effective % . | . . . . . . . . . . . . . . . . . . . . Robots Rewired 2 | . . . . . . 2 . . . . . . . . . . . . . Allies Hacked . | . . . . . . . . . . . . . . . . . . . . Hacks Repelled . | . . . . . . . . . . . . . . . . . . . . Allies | -11 -10 -10 -7 -7 -5 -5 -5 -5 -4 -4 -4 -4 -4 -3 -3 -3 -2 -2 -2 -------- Run | Yrd Mat Sub Rec Scr Fac Upp Upp War Pro Fac Upp Upp Zhi Pro Res Tes Res Qua Frg Total Allies 57 | . . 11 . . . 3 5 . 6 12 8 9 . 3 . . . . . Largest Group 11 | . . 11 10 8 7 2 4 4 4 6 4 4 2 4 1 . . . . Highest-Rated Group 422 | . . 209 190 152 129 127 324 320 324 422 324 324 162 318 81 . . . . Highest-Rated Ally 127 | . . 19 19 19 19 127 81 81 81 81 81 81 81 81 81 . . . . Total Orders . | . . . . . . . . . . . . . . . . . . . . Ally Attacks 345 | . . 8 32 . 32 6 11 18 44 95 31 30 . 38 . . . . . Total Damage 11177 | . . 139 550 . 369 147 319 553 1158 3701 1285 1532 . 1424 . . . . . Kills 83 | . . 1 5 . 7 2 3 5 7 26 5 10 . 12 . . . . . Allies Corrupted . | . . . . . . . . . . . . . . . . . . . . Allies Melted . | . . . . . . . . . . . . . . . . . . . . Intel | -11 -10 -10 -7 -7 -5 -5 -5 -5 -4 -4 -4 -4 -4 -3 -3 -3 -2 -2 -2 ------- Run | Yrd Mat Sub Rec Scr Fac Upp Upp War Pro Fac Upp Upp Zhi Pro Res Tes Res Qua Frg Active Infowar (turns) 10333 | 127 3549 694 522 . 1374 484 491 364 189 328 396 502 98 216 543 310 . 146 . Sensors 2774 | . . . . . 339 . . . . 328 387 502 98 199 543 310 . 68 . Terrain 798 | 58 740 . . . . . . . . . . . . . . . . . . Structural 1634 | . . . . . 3 484 491 364 189 . 9 . . 17 77 . . . . Seismic 4892 | 127 3549 694 522 . . . . . . . . . . . . . . . . T.N.C. 78 | . . . . . . . . . . . . . . . . . . 78 . Jamming 69 | . . . . . 69 . . . . . . . . . . . . . . ECM 1034 | . . . . . 966 . . . . . . . . . . 68 . . . Robot Analysis Total 8 | . 3 . . . 1 . . . . . . . 4 . . . . . . Derelict Logs Recovered 14 | . . 1 . 5 . 2 2 . 1 . 1 2 . . . . . . . Drone Launches . | . . . . . . . . . . . . . . . . . . . . Drone Recoveries . | . . . . . . . . . . . . . . . . . . . . Exploration | -11 -10 -10 -7 -7 -5 -5 -5 -5 -4 -4 -4 -4 -4 -3 -3 -3 -2 -2 -2 ------------- Run | Yrd Mat Sub Rec Scr Fac Upp Upp War Pro Fac Upp Upp Zhi Pro Res Tes Res Qua Frg Turns Passed 22411 | 209 3549 3307 881 6267 2364 664 491 623 615 557 396 502 99 297 604 449 130 278 129 Spaces Moved 21158 | 81 2040 1847 469 2274 4067 1032 761 1096 1344 1196 995 889 161 547 1160 506 120 409 164 Core 260 | 1 . . . . . . . . . . . . . . 13 125 . 68 53 Treads 6351 | 80 2040 1847 469 1915 . . . . . . . . . . . . . . . Legs . | . . . . . . . . . . . . . . . . . . . . Wheels 359 | . . . . 359 . . . . . . . . . . . . . . . Hover 13856 | . . . . . 3938 1032 761 1096 1344 1196 995 889 161 547 1147 178 120 341 111 Flight 332 | . . . . . 129 . . . . . . . . . . 203 . . . Fastest Speed 13 | 50 160 160 160 150 15 30 47 34 15 14 30 30 30 30 13 35 48 38 50 Average Speed 89 | 158 160 160 177 272 36 46 47 44 33 30 30 30 30 32 30 59 48 53 55 Slowest Speed 360 | 160 240 240 360 360 100 47 54 116 34 34 30 30 30 80 100 150 48 100 100 Overloaded Moves 239 | . . . . . 128 17 . . 4 4 . . . . 79 . . 7 . Propulsion Burnouts 1 | . . . . . . . . . . . . . . . 1 . . . . Robots Hopped . | . . . . . . . . . . . . . . . . . . . . Potential Cave-ins . | . . . . . . . . . . . . . . . . . . . . Cave-ins Triggered . | . . . . . . . . . . . . . . . . . . . . Teleports 2 | . . . . . . . . . . . . . . . 1 . . 1 . Exploration Rate (%) 64 | 5 98 86 98 88 74 95 92 85 96 29 87 83 60 60 29 47 4 64 10 Regions Visited 19 Branch Regions 14 Pre-discovered Areas 22 | . 2 1 7 1 3 2 1 . . . 1 1 3 . . . . . . Known Exits Taken 15 | . . 1 1 . 1 1 1 . 1 1 1 1 1 1 1 1 1 1 . Unknown Exits Taken 4 | 1 1 . . 1 . . . 1 . . . . . . . . . . . Scrap Searched 30 | . . 9 . 7 . 2 2 . 3 . 4 2 . 1 . . . . . Spaces Dug 158 | . 22 3 . . 48 6 3 1 . 10 6 6 . 2 23 13 6 2 7 Terrain Destroyed 338 | . 73 49 . . 129 6 3 1 . 10 6 6 . 2 25 13 6 2 7 Melee 133 | . . . . . 48 6 3 1 . 10 6 6 . 2 23 13 6 2 7 Projectile 13 | . 6 4 . . 1 . . . . . . . . . 2 . . . . AOE 192 | . 67 45 . . 80 . . . . . . . . . . . . . . Terrain Rammed . | . . . . . . . . . . . . . . . . . . . . Walls Destroyed . | . . . . . . . . . . . . . . . . . . . . Machines Disabled . | . . . . . . . . . . . . . . . . . . . . Actions | -11 -10 -10 -7 -7 -5 -5 -5 -5 -4 -4 -4 -4 -4 -3 -3 -3 -2 -2 -2 --------- Run | Yrd Mat Sub Rec Scr Fac Upp Upp War Pro Fac Upp Upp Zhi Pro Res Tes Res Qua Frg Total 23761 | 118 2207 2110 520 2330 4663 1182 874 1223 1480 1335 1068 1101 199 651 1322 588 156 442 192 Wait 1336 | . 25 159 41 19 250 98 90 95 104 61 51 191 14 81 30 17 . . 10 Move 21139 | 80 2039 1846 468 2273 4066 1031 760 1095 1343 1195 994 888 160 546 1159 505 119 408 164 Hop . | . . . . . . . . . . . . . . . . . . . . Pick Up 151 | 4 18 13 2 18 44 4 3 5 4 4 2 2 4 2 14 5 1 2 . Fast Attach 70 | 7 4 1 . 1 19 1 . 3 . 5 . . 2 . . 12 5 7 3 Attach 59 | . . . 1 . 25 1 2 2 . 2 . . . 1 17 5 2 . 1 Detach 33 | . . . 1 . 13 1 2 2 . 2 . . . . 8 1 . 3 . Swap 135 | . 17 17 5 6 31 3 4 8 4 8 2 . 5 9 14 . 2 . . Drop 127 | 1 13 17 1 8 29 6 1 10 5 7 2 2 6 3 9 2 1 3 1 Fire 149 | 25 49 54 . . 15 1 . 1 2 . . . . . 2 . . . . Melee 469 | . . . . 5 171 22 12 2 14 37 17 17 8 9 59 41 26 19 10 Ram 10 | . . . . . . . . . . . . . . . 10 . . . . Kick . | . . . . . . . . . . . . . . . . . . . . Crush 44 | 1 42 . 1 . . . . . . . . . . . . . . . . Escape Stasis 21 | . . . . . . . . . 4 14 . . . . . . . . 3 Rewire 17 | . . 3 . . . 13 . . . . . 1 . . . . . . . Trap . | . . . . . . . . . . . . . . . . . . . . Miscellaneous 1 | . . . . . . 1 . . . . . . . . . . . . . Route ------- -11/Scrapyard -10/Materials (discovered 6 exits: *Mat x3 / [*Min x2] / *Sub) -10/Subcaves (discovered 3 exits: *Mat x2 / *Rec) -7/Recycling (discovered 2 exits: *Fac / *Scr) -7/Scraptown (discovered 2 exits: *Fac x2) -5/Factory (discovered 6 exits: *Fac x4 / *Upp x2) -5/Upper Caves (discovered 2 exits: *Upp / *Fac) -5/Upper Caves (discovered 2 exits: *Fac / *War) -5/Warlord -4/Proximity Caves -4/Factory (discovered 4 exits: *Res / *Upp x2 / Arm) -4/Upper Caves -4/Upper Caves (discovered 2 exits: *Res / *Zhi) -4/Zhirov -3/Proximity Caves -3/Research -3/Testing -2/Research -2/Quarantine (discovered 3 exits: *Acc / *Sec / *Frg) -2/Protoforge History --------- Turn | Location | Event 19 | -11/Scrapyard | Discovered new exit (range 16) 210 | -11/Scrapyard | Entered Materials 306 | -10/Materials | Build established: Mutant 456 | -10/Materials | Discovered new exit (range 5) 536 | -10/Materials | Discovered new exit (range 5) 1008 | -10/Materials | Discovered new exit (range 9) 1189 | -10/Materials | Discovered new exit (range 6) 1244 | -10/Materials | Learned 2 Mines zone layouts 1261 | -10/Materials | Discovered new exit (range 12) 1312 | -10/Materials | Learned 4 Recycling zone layouts 1419 | -10/Materials | Learned location of 2 exits from Mines 1458 | -10/Materials | Learned location of 2 exits from Mines 1489 | -10/Materials | Identified exit to Materials 1511 | -10/Materials | Learned location of 1 exit from Recycling 1544 | -10/Materials | Learned location of 2 exits from Subcaves 1588 | -10/Materials | Learned location of Recycling (-7) 2682 | -10/Materials | Discovered new exit (range 11) 3759 | -10/Materials | Entered Subcaves 3760 | -10/Subcaves | Approached by a straggling Scientist 3760 | -10/Subcaves | Identified exit to Materials 3761 | -10/Subcaves | Identified exit to Recycling 4151 | -10/Subcaves | A swath of the cavern ceiling suddenly collapsed 4392 | -10/Subcaves | Core integrity fell below 50% 4444 | -10/Subcaves | Visited triangular shrine 4453 | -10/Subcaves | Found Prototype Device 4453 | -10/Subcaves | Identified V3-11A's Pendant 4458 | -10/Subcaves | Befriended Subdweller 4593 | -10/Subcaves | Befriended Subdweller 4623 | -10/Subcaves | Befriended Subdweller 5098 | -10/Subcaves | Visited 4L-MR0's lab 5119 | -10/Subcaves | Found Gun Armor 5188 | -10/Subcaves | Shifting Twisted Machinery released Spk. Treads 5190 | -10/Subcaves | Shifting Twisted Machinery released Sub. Laser 5708 | -10/Subcaves | Befriended Subdweller 5964 | -10/Subcaves | Shifting Twisted Machinery released Humpback 5967 | -10/Subcaves | Shifting Twisted Machinery released Sub. Power Source 6023 | -10/Subcaves | Befriended Subdweller 6028 | -10/Subcaves | Befriended Subdweller 6134 | -10/Subcaves | Visited Clippyterm 6170 | -10/Subcaves | Ambushed by Subdwellers from Twisted Machinery 6173 | -10/Subcaves | Befriended Subdweller 6173 | -10/Subcaves | Befriended Subdweller 6206 | -10/Subcaves | Shifting Twisted Machinery released Riot Gun 6215 | -10/Subcaves | Learned location of Zion (-7) 6217 | -10/Subcaves | Shifting Twisted Machinery released Sub. Power Source 6348 | -10/Subcaves | Ambushed by angry Subdweller bent on revenge 6348 | -10/Subcaves | Befriended Subdweller 6368 | -10/Subcaves | A swath of the cavern ceiling suddenly collapsed 6453 | -10/Subcaves | Befriended Subdweller 6453 | -10/Subcaves | Befriended Subdweller 7066 | -10/Subcaves | Entered Recycling 7066 | -7/Recycling | Accompanied by 10 allies 7067 | -7/Recycling | Identified exit to Scraptown 7356 | -7/Recycling | Discovered new exit (range 9) 7844 | -7/Recycling | Scanned before Scraplab entrance 7947 | -7/Recycling | Entered Scraptown 7947 | -7/Scraptown | Accompanied by 8 allies 8397 | -7/Scraptown | Visited UFD Registry 8397 | -7/Scraptown | Registered with UFD as "Pyrocutter" 8498 | -7/Scraptown | Heard Great Nut preacher, LISTEN AND RECITE! 8585 | -7/Scraptown | Scanned Subdweller tech in exchange for log data 8599 | -7/Scraptown | Learned Factory interactive machine intel 8603 | -7/Scraptown | Learned 8 Factory zone layouts 8606 | -7/Scraptown | Learned location of 1 exit from Proximity Caves 8610 | -7/Scraptown | Learned Research terminal intel 8653 | -7/Scraptown | Discovered new exit (range 11) 8780 | -7/Scraptown | Guru changed UFD alias to "Softninja" 9194 | -7/Scraptown | Delivered V3-11A's Pendant to T0-NE2 in exchange for information 9770 | -7/Scraptown | Visited Cave Peace 9815 | -7/Scraptown | Visited Shadow of the Wyrm 10005 | -7/Scraptown | Visited Red Mages 10046 | -7/Scraptown | Visited Cyclists 10070 | -7/Scraptown | Entered Cyclist Reading Room 10352 | -7/Scraptown | Visited CPS Storage 10552 | -7/Scraptown | Visited LU-1G1's Boring Crew 10668 | -7/Scraptown | Visited Sword Containment 10753 | -7/Scraptown | Visited Derelict Rescue Squad 10794 | -7/Scraptown | Found DRS Beacon 10859 | -7/Scraptown | Visited DA-N13 Charitable Foundation 10873 | -7/Scraptown | Found DCF Scrap (27 items) 11005 | -7/Scraptown | Visited Curators Association 11178 | -7/Scraptown | Delivered Scrap Shield to a Scientist 11373 | -7/Scraptown | Visited Scrapoid Pod Storage 11386 | -7/Scraptown | Found Scrapoid Pod 11432 | -7/Scraptown | Visited Scrapoid Research Area 11472 | -7/Scraptown | Visited A0-MCA Data Center 11487 | -7/Scraptown | Given a C+ rating by A0-MCA 11489 | -7/Scraptown | Found A0-MCA's Component Scanner 11658 | -7/Scraptown | Found Prototype Slashing Weapon 11659 | -7/Scraptown | Identified Companion Sword 11908 | -7/Scraptown | Visited SPCMW 11953 | -7/Scraptown | Visited TADAMA 12401 | -7/Scraptown | System corruption cleaned by C-Scrubber 13409 | -7/Scraptown | Tech Extrapolator generated special schematic: Machine Rigger 13570 | -7/Scraptown | Tech Extrapolator generated special schematic: Vmp. Humpback 13950 | -7/Scraptown | Discovered new exit (range 5) 14086 | -7/Scraptown | Met Optimus 14086 | -7/Scraptown | Accepted into 0bPrime 14214 | -7/Scraptown | Entered Factory 14214 | -5/Factory | Accompanied by 7 allies 14214 | -5/Factory | Evolved 10 slots: Propulsion x3, Utility x7 14216 | -5/Factory | Loaded intel: 53 interactive machine locations 14324 | -5/Factory | Tech Extrapolator generated special schematic: Deep Structural Scanner 14397 | -5/Factory | Lost 3 allies 14654 | -5/Factory | Fabricated Deep Structural Scanner? 14762 | -5/Factory | Repaired Cld. Aerolev Unit 14997 | -5/Factory | Repaired Cld. Aerolev Unit 15089 | -5/Factory | Repaired Cld. Aerolev Unit? 15107 | -5/Factory | Build established: Hacker-Mutant 15173 | -5/Factory | Spotted B-75 Beast 15232 | -5/Factory | Discovered new exit (range 12) 15280 | -5/Factory | Discovered new exit (range 15) 15388 | -5/Factory | System corruption reached 10% 15409 | -5/Factory | Lost 3 parts (1n2u) 15480 | -5/Factory | Identified exit to Upper Caves 15508 | -5/Factory | Repaired Cld. Aerolev Unit 15592 | -5/Factory | Repaired Cld. Aerolev Unit 15670 | -5/Factory | Learned Research emergency access door positions 15681 | -5/Factory | Repaired Cld. Gravmag System 15683 | -5/Factory | Repaired Cld. Aerolev Unit? 15723 | -5/Factory | Loaded intel: 6 fabricator locations 15768 | -5/Factory | Learned 2 Proximity Caves zone layouts 15773 | -5/Factory | Repaired Cld. Gravmag System 15827 | -5/Factory | Learned location of Proximity Caves (-3) 15843 | -5/Factory | Learned 8 Quarantine zone layouts 15849 | -5/Factory | Learned Testing garrison access intel 15867 | -5/Factory | Learned Testing security intel 15896 | -5/Factory | Identified exit to Factory 15899 | -5/Factory | Loaded intel: 8 recycling unit locations 15934 | -5/Factory | Learned Testing garrison access intel 16003 | -5/Factory | Tech Extrapolator generated special schematic: Vmp. Brace Plating 16157 | -5/Factory | Fabricated Vmp. Brace Plating (x1) 16166 | -5/Factory | Learned location of Protoforge (-2) 16287 | -5/Factory | Destroyed 7 combat bots 16418 | -5/Factory | Core integrity fell below 50% 16534 | -5/Factory | Core integrity fell below 20% 16578 | -5/Factory | Entered Upper Caves 16580 | -5/Upper Caves | UFD Scientist delivered a prototype 16582 | -5/Upper Caves | Found Enh. Scrap Shield 16613 | -5/Upper Caves | Activated DRS Beacon 16758 | -5/Upper Caves | Attacked by a faux Warlord 16795 | -5/Upper Caves | CL-ANK showed up to help 16797 | -5/Upper Caves | CL-ANK revealed a hidden path 16800 | -5/Upper Caves | Attached CPS modules to CL-ANK. 16985 | -5/Upper Caves | Attracted the attention of an 0b10 base 17013 | -5/Upper Caves | Learned Extension garrison access intel 17013 | -5/Upper Caves | Learned Factory emergency access door positions 17013 | -5/Upper Caves | Learned Armory trap positions 17013 | -5/Upper Caves | Learned 6 Lower Caves zone layouts 17013 | -5/Upper Caves | Identified exit to Upper Caves 17013 | -5/Upper Caves | Learned location of 1 exit from Upper Caves 17079 | -5/Upper Caves | Learned 4 Factory zone layouts 17099 | -5/Upper Caves | Attracted the attention of an 0b10 checkpoint 17242 | -5/Upper Caves | Entered another Upper Caves area 17243 | -5/Upper Caves | Identified exit to Warlord 17261 | -5/Upper Caves | Discovered exit to Factory (range 15) 17338 | -5/Upper Caves | Prototype Device suddenly appears! 17342 | -5/Upper Caves | Found Amulet of Y3-NDR 17377 | -5/Upper Caves | Joined by bewildered Wizard 17378 | -5/Upper Caves | Joined by bewildered Wizard 17385 | -5/Upper Caves | Joined by bewildered Wizard 17386 | -5/Upper Caves | Joined by bewildered Wizard 17481 | -5/Upper Caves | Learned Factory stockpile data 17527 | -5/Upper Caves | Entered an active Warlord outpost 17532 | -5/Upper Caves | Learned Research security intel 17550 | -5/Upper Caves | Destroyed ZM-EFF(g) 17723 | -5/Upper Caves | Joined by bewildered Wizard 17733 | -5/Upper Caves | Entered Warlord 17733 | -5/Warlord | Accompanied by 4 allies 17751 | -5/Warlord | System corruption cleaned by Quarantine Array 17985 | -5/Warlord | Build established: Mutant 18041 | -5/Warlord | Visited the Vortex Lab 18044 | -5/Warlord | Found Vortex Rifle 18060 | -5/Warlord | Warlord's base attacked by MAIN.C 18090 | -5/Warlord | Found System Purifier 18093 | -5/Warlord | Found Vortex Chain Reactor 18116 | -5/Warlord | Found Vortex Catalyst Activator 18237 | -5/Warlord | Lost 4 allies 18274 | -5/Warlord | Warlord forces counterattacked 18352 | -5/Warlord | Discovered new exit (range 15) 18356 | -5/Warlord | Entered Proximity Caves 18400 | -4/Proximity Caves | Joined by bewildered Wizard 18400 | -4/Proximity Caves | Joined by bewildered Wizard 18400 | -4/Proximity Caves | Joined by bewildered Wizard 18400 | -4/Proximity Caves | Lost 8 allies 18431 | -4/Proximity Caves | Joined by bewildered Wizard 18727 | -4/Proximity Caves | Lost 3 allies 18971 | -4/Proximity Caves | Entered Factory 18971 | -4/Factory | Evolved 2 slots: Power x1, Propulsion x1 18972 | -4/Factory | Identified exit to Armory 18972 | -4/Factory | Identified exit to Upper Caves 19073 | -4/Factory | Loaded intel: 8 recycling unit locations 19098 | -4/Factory | Joined by bewildered Wizard 19098 | -4/Factory | Joined by bewildered Wizard 19099 | -4/Factory | Joined by bewildered Wizard 19109 | -4/Factory | Joined by bewildered Wizard 19121 | -4/Factory | Spotted B-86 Titan 19301 | -4/Factory | Lost 4 allies 19339 | -4/Factory | Joined by bewildered Wizard 19339 | -4/Factory | Joined by bewildered Wizard 19339 | -4/Factory | Discovered new exit (range 10) 19345 | -4/Factory | Joined by bewildered Wizard 19373 | -4/Factory | Identified exit to Research 19423 | -4/Factory | Lost 4 allies 19427 | -4/Factory | Garrison activated, responded to threat 19431 | -4/Factory | Joined by bewildered Wizard 19432 | -4/Factory | Joined by bewildered Wizard 19490 | -4/Factory | Build established: Sprinter 19528 | -4/Factory | Entered Upper Caves 19542 | -4/Upper Caves | Joined by bewildered Wizard 19543 | -4/Upper Caves | Joined by bewildered Wizard 19572 | -4/Upper Caves | Joined by bewildered Wizard 19572 | -4/Upper Caves | Joined by bewildered Wizard 19585 | -4/Upper Caves | Spotted B-86 Titan 19599 | -4/Upper Caves | Allies destroyed B-86 Titan 19625 | -4/Upper Caves | Joined by bewildered Wizard 19702 | -4/Upper Caves | Lost 4 allies 19737 | -4/Upper Caves | Learned location of Testing (-3) 19740 | -4/Upper Caves | Encountered a Warlord checkpoint 19748 | -4/Upper Caves | Joined by bewildered Wizard 19748 | -4/Upper Caves | Joined by bewildered Wizard 19868 | -4/Upper Caves | Discovered new exit (range 8) 19924 | -4/Upper Caves | Identified exit to Upper Caves 19924 | -4/Upper Caves | Entered another Upper Caves area 19926 | -4/Upper Caves | Discovered exit to Research (range 14) 20088 | -4/Upper Caves | Joined by bewildered Wizard 20088 | -4/Upper Caves | Joined by bewildered Wizard 20090 | -4/Upper Caves | Joined by bewildered Wizard 20100 | -4/Upper Caves | Joined by bewildered Wizard 20146 | -4/Upper Caves | Lost 3 allies 20172 | -4/Upper Caves | Joined by bewildered Wizard 20175 | -4/Upper Caves | Learned location of Quarantine (-2) 20178 | -4/Upper Caves | Joined by bewildered Wizard 20313 | -4/Upper Caves | Discovered new exit (range 15) 20317 | -4/Upper Caves | Identified exit to Zhirov 20340 | -4/Upper Caves | Joined by bewildered Wizard 20342 | -4/Upper Caves | Joined by bewildered Wizard 20347 | -4/Upper Caves | Learned Research garrison access intel 20426 | -4/Upper Caves | Entered Zhirov 20426 | -4/Zhirov | Accompanied by 2 allies 20426 | -4/Zhirov | Discovered new exit (range 3) 20432 | -4/Zhirov | Met Zhirov 20438 | -4/Zhirov | Learned location of Command (-1) 20441 | -4/Zhirov | Zhirov requested help retrieving the SGEMP Prototype 20446 | -4/Zhirov | Found Alien Artifact 20446 | -4/Zhirov | Identified Integrated Reactor 20446 | -4/Zhirov | Installed Integrated Reactor, increased core energy generation (+10) 20497 | -4/Zhirov | Found Alien Artifact 20510 | -4/Zhirov | Identified exit to Proximity Caves 20525 | -4/Zhirov | Entered Proximity Caves 20525 | -3/Proximity Caves | Accompanied by 2 allies 20528 | -3/Proximity Caves | Spotter reported a threat 20545 | -3/Proximity Caves | Joined by bewildered Wizard 20547 | -3/Proximity Caves | Joined by bewildered Wizard 20702 | -3/Proximity Caves | Joined by bewildered Wizard 20709 | -3/Proximity Caves | Attracted the attention of an 0b10 checkpoint 20716 | -3/Proximity Caves | Discovered exit to Research (range 9) 20822 | -3/Proximity Caves | Entered Research 20822 | -3/Research | Accompanied by 1 ally 20822 | -3/Research | Evolved 2 slots: Propulsion x1, Utility x1 20825 | -3/Research | Loaded intel: 23 terminal locations 20826 | -3/Research | Loaded intel: 4 garrison access locations 20962 | -3/Research | Identified Transdimensional Reconstructor 20962 | -3/Research | Warped through subspace 21016 | -3/Research | Loaded intel: 5 recycling unit locations 21222 | -3/Research | Spotted B-86 Titan 21259 | -3/Research | Discovered new exit (range 3) 21260 | -3/Research | Identified exit to Testing 21322 | -3/Research | Search patrols dispatched 21361 | -3/Research | Spotted Executioner 21361 | -3/Research | Spotted Executioner 21362 | -3/Research | Cargo convoy interrupted 21417 | -3/Research | Core integrity fell below 50% 21426 | -3/Research | Entered Testing 21427 | -3/Testing | Loaded intel: 1 garrison access location 21444 | -3/Testing | Lost 11 parts (1p7n3u) 21777 | -3/Testing | Core integrity fell below 20% 21777 | -3/Testing | System corruption reached 10% 21832 | -3/Testing | Discovered new exit (range 15) 21874 | -3/Testing | Identified exit to Research 21875 | -3/Testing | Entered Research 21875 | -2/Research | Evolved 2 slots: Propulsion x1, Utility x1 21903 | -2/Research | Lost 4 parts (1n3u) 21911 | -2/Research | Garrison activated, responded to threat 21940 | -2/Research | Build established: Hacker-Mutant 21945 | -2/Research | Discovered new exit (range 12) 22005 | -2/Research | Identified exit to Quarantine 22005 | -2/Research | Entered Quarantine 22006 | -2/Quarantine | Identified exit to Access 22006 | -2/Quarantine | Identified exit to Section 7 22006 | -2/Quarantine | Identified exit to Protoforge 22029 | -2/Quarantine | Found Alien Impact Weapon 22104 | -2/Quarantine | Spotted Alpha 7 22121 | -2/Quarantine | Found Alien Artifact 22132 | -2/Quarantine | Identified Subatomic Replicator 22201 | -2/Quarantine | Scanned by Researcher 22216 | -2/Quarantine | Core integrity fell below 50% 22219 | -2/Quarantine | Found Transdimensional Reconstructor 22219 | -2/Quarantine | Warped through subspace 22219 | -2/Quarantine | Spotted Fortress 22248 | -2/Quarantine | Lost 12 parts (2p5n5u) 22283 | -2/Quarantine | Entered Protoforge 22284 | -2/Protoforge | Forged Quantum Companion 22288 | -2/Protoforge | Forged Prototype Slashing Weapon 22304 | -2/Protoforge | Superfortress began startup sequence 22318 | -2/Protoforge | Core integrity fell below 20% 22343 | -2/Protoforge | Spotted Hotshot 22346 | -2/Protoforge | Spotted Hotshot 22401 | -2/Protoforge | Spotted Hotshot 22402 | -2/Protoforge | Spotted Hotshot 22412 | -2/Protoforge | Destroyed by Y-72 Warden with Railgun Last Messages --------------- 22386_ Imp. Antigrav System destroyed. 22387_ Y-72 Warden destroyed. 22404_ W-44 Eye sends out distress signal. 22404_ Slug penetrates Wall. 22404_ Terminal disabled. 22404_ Penetrated by Slug. 22404_ Imp. Antigrav System destroyed. 22404_ Slug penetrates U-05 Engineer. 22404_ U-05 Engineer suffers critical hit (Destroy). 22404_ Imp. System Shield destroyed. 22404_ Redirected attack with Superquantum Companion. Superquantum Companion: "Zing!" 22405_ Hotshot activates shielding mode. 22409_ Penetrated by Slug. 22409_ U-05 Engineer destroyed. 22409_ Penetrated by Slug. 22409_ U-05 Engineer builds a Wall. The surroundings shift and blur. 22411_ ALERT: Hostiles spotted, dispatching reinforcements to Terminal F007. Map ----- +----------------------------------------------------+ | ?????????????????????????????????????????????????? | | ?????????????????????????????????????????????????? | | ?????????????????????????????????????????????????? | | ?????????????????????????????????????????????????? | | ?????????????????????????????????????????????????? | | ?????????????????????????????????????????????????? | | ?????????????????????????????????????????????????? | | ?????????????????????????????????????????????????? | | ?????????????????????????????????????????????????? | | ?????????????????????????????????????????????????? | | ?????????????????????????????????????????????????? | | ?????????????????????????????????????????????????? | | ?????????????????????????????????????????????????? | | ?????????????????????????????????????????????????? | | ???????????????????? ???????????????????????????? | | ????????????????????H h??????????????????????????? | | ????????????????????H ??????????????????????????? | | ???????????????????# #?????????????????????????? | | ???????????????????# #?????????????????????????? | | ??????????????????## h ##????????????????????????? | | ??????????????????# #????????????????????????? | | ??????????????????# #????????????????????????? | | ??????????????????+ #????????????????????????? | | ??????????????????# #########????????????????? | | ??????????????????? # #????????????????? | | ???????????????????# %##@ #????????????????? | | ???????????????????# !## #????????????????? | | ???????????????????# ## #????????????????? | | ???????????????????# ## #????????????????? | | ??######+########### ## #????????????????? | | ?? g #????????????????? | | ? # #????????????????? | | ? + #????????????????? | | ? g# #????????????????? | | ???####+################# #????????????????? | | ???# #???????# #????????????????? | | ???# """"" #???????# #????????????????? | | ???# ""T"" #???????# #????????????????? | | ???# #???????? #????????????????? | | ???# #???????? #????????????????? | | ???# #???????? #????????????????? | | ???# """"""" #????????### ####????????????????? | | ???# """"""" #???????????##???????????????????? | | ???# """"" " #????????????????????????????????? | | ???+ !##???????????????????????????????? | | ???# !=%#???????????????????????????????? | | ???# [##???????????????????????????????? | | #########"####????????????????????????????????? | | # #???????????????????????????????????? | | # "" #???????????????????????????????????? | +----------------------------------------------------+ Best States ------------- Heat Dissipation 49 Energy Generation 65 Energy Capacity 700 Matter Stores 300 Matter Capacity 300 Sight Range 16 Robot Scan Range 18 Terrain Scan Range 16 Terrain Scan Density 10 ECM Strength 1 Jamming Range 14 Additional Mass Support 9 Armor Coverage 800 Propulsion Shielding 66 Utility Shielding 90 Evasion (%) 71 Melee Accuracy 18 Core Analysis 6 Armor Integrity Analysis 30 Recoil Reduction 2 Offensive Hacking 42 Defensive Hacking 26 Item Schematics ----------------- Spk. Medium Treads | -7/Scraptown | Extrapolated Mak. Medium Armor Plating | -7/Scraptown | Extrapolated Mak. Leg | -7/Scraptown | Extrapolated Spk. Treads | -7/Scraptown | Extrapolated Mak. Trap Scanner | -7/Scraptown | Extrapolated Mak. Ablative Armor | -7/Scraptown | Extrapolated Machine Rigger | -7/Scraptown | Extrapolated Lgt. Humpback | -7/Scraptown | Extrapolated Vmp. Humpback | -7/Scraptown | Extrapolated Beamcaster | -7/Scraptown | Extrapolated Mak. Coolant Network | -7/Scraptown | Extrapolated Deep Structural Scanner | -5/Factory | Extrapolated Mak. Terrain Scan Processor | -5/Factory | Extrapolated Spk. Heavy Treads | -5/Factory | Extrapolated 0b10 Decoder Chip [Generic] | -5/Factory | Extrapolated 0b10 Decoder Chip [Scout] | -5/Factory | Extrapolated 0b10 Decoder Chip [Skirmisher] | -5/Factory | Extrapolated Mak. Targeting Computer | -5/Factory | Extrapolated Mak. Hacking Suite | -5/Factory | Extrapolated Mapping Drone Bay | -5/Factory | Extrapolated Multitool | -5/Factory | Extrapolated Mak. Terrain Scanner | -5/Factory | Extrapolated Mak. Spear | -5/Factory | Extrapolated Mak. System Shield | -5/Factory | Extrapolated Graphene Brace | -5/Factory | Hacked Tri-rail Accelerator | -5/Factory | Scanalyzed CPS Tube | -5/Factory | Scanalyzed Cld. Gravmag System | -5/Factory | Scanalyzed Vmp. Brace Plating | -5/Factory | Extrapolated Assault Drone Bay | -4/Zhirov | Free Exp. Heat Sink | -4/Zhirov | Free Exp. Optical Array | -4/Zhirov | Free Imp. Arc Thrower | -4/Zhirov | Free Nanoactuators | -3/Research | Hacked Prc. Energy Filter | -2/Quarantine | Archive Imp. Diametric Drive | -2/Quarantine | Archive Robot Schematics ------------------ None Fabricated ------------ Deep Structural Scanner | x1 | -5/Factory Vmp. Brace Plating | x1 | -5/Factory Repaired ---------- Cld. Aerolev Unit | 25% | -5/Factory Cld. Aerolev Unit | 29% | -5/Factory Cld. Aerolev Unit | 37% | -5/Factory Cld. Aerolev Unit | 5% | -5/Factory Cld. Aerolev Unit | 27% | -5/Factory Cld. Gravmag System | 35% | -5/Factory Cld. Aerolev Unit | 52% | -5/Factory Cld. Gravmag System | 55% | -5/Factory Studied --------- Antigrav Array | -3/Research | Hacked Gravmag System | -3/Testing | Hacked Alien Tech Used ----------------- Integrated Reactor Transdimensional Reconstructor Subatomic Replicator Achievements -------------- None Challenges ------------ None Game ------ Seed VoltaicSensorExpander Manual? 0 Play Time 03:12:50 Cumulative 1007.5 hours Start 2025.11.09 @ 21:47:01 End 2025.11.10 @ 01:06:46 Sessions 1 Manual Loads 0 Difficulty Rogue Special Mode None Game No. 314 Rogue 312 Adventurer 2 Explorer 0 Win Type - Total 72 Types 20/17/16/1/1/1/12/1/1/2 Lore% 97 Gallery% 95 Achievement% 82 Wizard Run 0 Options --------- Layout 0 ASCII 0 Keyboard 1 Movement Numpad Keybinds 0 Fullscreen 1 Font 24/Smallcaps Map View 76x50 Zoom Use 0% Tactical HUD 1 Map Filters NONE Filters NONE Steam 1 RUN: a958afff-3f35-4284-8c78-fc7722ea71d5